fUST/lending_fUST_20250506
["ID","MTS","AMOUNT","RATE_DAILY","PERIOD"]
[359989269,1746466247592,-400.0,0.00032876,8]
[359989270,1746466247602,-3135.4,0.00032876,8]
[359989271,1746466247611,-1911.03,0.00032876,8]
[359989272,1746466247621,-400.0,0.00032876,8]
[359989273,1746466247630,-3885.96,0.00032876,8]
[359989274,1746466247640,-7691.86,0.00032876,8]
[359989275,1746466247650,-400.0,0.00032876,8]
[359989276,1746466247659,-400.0,0.00032876,8]
[359989277,1746466247670,-400.0,0.00032876,8]
[359989278,1746466247679,-400.0,0.00032876,8]
[359989279,1746466247689,-4527.66,0.00032876,8]
[359989280,1746466247698,-500.0,0.00032876,8]
[359989281,1746466247709,-400.0,0.00032876,8]
[359989282,1746466247718,-400.0,0.00032876,8]
[359989283,1746466247728,-400.0,0.00032876,8]
[359989284,1746466247738,-400.0,0.00032876,8]
[359989285,1746466247748,-7054.49,0.00032876,8]
[359989286,1746466247758,-516.96,0.00032876,8]
[359989287,1746466247767,-604.47,0.00032876,8]
[359989288,1746466247777,-553.59,0.00032876,8]
[359989289,1746466247787,-151.0,0.00032876,7]
[359989290,1746466247796,-522.10481605,0.00032876,8]
[359989291,1746466247806,-151.0,0.00032876,7]
[359989292,1746466247815,-400.0,0.00032876,8]
[359989293,1746466247825,-517.35276652,0.00032876,8]
[359989294,1746466247835,-233.97391957,0.00032876,8]
[359989295,1746466247844,-400.0,0.00032876,8]
[359989296,1746466247854,-1553.26,0.00032876,8]
[359989297,1746466247865,-400.0,0.00032876,8]
[359989298,1746466247874,-1471.97,0.00032876,8]
[359989299,1746466247884,-400.0,0.00032876,8]
[359989300,1746466247893,-400.0,0.00032876,8]
[359989301,1746466247903,-400.0,0.00032876,8]
[359989302,1746466247913,-400.0,0.00032876,8]
[359989303,1746466247923,-400.0,0.00032876,8]
[359989304,1746466247933,-400.0,0.00032876,8]
[359989305,1746466247942,-202.21434323,0.00032876,8]
[359989306,1746466247953,-784.14,0.00032876,8]
[359989307,1746466247963,-2405.99,0.00032876,8]
[359989308,1746466247973,-566.19,0.00032876,8]
[359989309,1746466247983,-1800.71,0.00032876,8]
[359989310,1746466247993,-659.71,0.00032876,8]
[359989311,1746466248003,-400.0,0.00032876,8]
[359989312,1746466248013,-3076.91,0.00032876,8]
[359989313,1746466248023,-400.0,0.00032876,2]
[359989314,1746466248033,-400.0,0.00032876,8]
[359989315,1746466248043,-755.88,0.00032876,8]
[359989316,1746466248053,-400.0,0.00032876,8]
[359989317,1746466248063,-400.0,0.00032876,8]
[359989318,1746466248072,-712.21,0.00032876,8]
[359989319,1746466248083,-400.0,0.00032876,2]
[359989320,1746466248092,-400.0,0.00032876,8]
[359989321,1746466248102,-300.0,0.00032876,8]
[359989322,1746466248113,-1249.89,0.00032876,8]
[359989323,1746466248122,-151.0,0.00032876,7]
[359989324,1746466248133,-411.12,0.00032876,8]
[359989325,1746466248143,-151.0,0.00032876,7]
[359989326,1746466248153,-151.0,0.00032876,7]
[359989327,1746466248163,-2513.46,0.00032876,8]
[359989328,1746466248174,-400.0,0.00032876,2]
[359989329,1746466248184,-400.0,0.00032876,8]
[359989330,1746466248195,-400.0,0.00032876,8]
[359989331,1746466248206,-400.0,0.00032876,8]
[359989332,1746466248216,-160.0,0.00032876,7]
[359989333,1746466248226,-400.0,0.00032876,8]
[359989334,1746466248236,-501.51848821,0.00032876,8]
[359989335,1746466248246,-1291.97,0.00032876,8]
[359989336,1746466248256,-519.25945595,0.00032876,8]
[359989337,1746466248266,-400.0,0.00032876,8]
[359989338,1746466248278,-400.0,0.00032876,8]
[359989339,1746466248288,-400.0,0.00032876,8]
[359989340,1746466248298,-400.0,0.00032876,8]
[359989341,1746466248307,-649.3025594,0.00032877,5]
[359989342,1746466248318,-500.0,0.00032877,7]
[359989343,1746466248328,-584.46044882,0.00032877,7]
[359989344,1746466248338,-160.0,0.0003288,7]
[359989345,1746466248350,-841.77443764,0.0003288,7]
[359989346,1746466248359,-160.0,0.0003288,7]
[359989347,1746466248369,-12607.13495863,0.0003288,7]
[359989348,1746466248378,-1987.73830792,0.00032898,2]
[359989349,1746466248388,-151.0,0.000329,12]
[359989350,1746466248398,-151.0,0.000329,11]
[359989351,1746466248408,-151.0,0.000329,13]
[359989352,1746466248418,-151.0,0.000329,13]
[359989353,1746466248427,-151.0,0.000329,16]
[359989354,1746466248437,-8588.12,0.000329,30]
[359989355,1746466248447,-3501.41,0.000329,7]
[359989356,1746466248456,-421.83547488,0.000329,7]
[359989357,1746466248466,-182.23035355,0.000329,7]
[359989358,1746466248475,-500.0,0.00033,30]
[359989359,1746466248485,-3813.0,0.00033,2]
[359989360,1746466248495,-151.0,0.00033,13]
[359989361,1746466248506,-151.0,0.00033,20]
[359989362,1746466248516,-151.0,0.00033,12]
[359989363,1746466248525,-151.0,0.00033,20]
[359989364,1746466248651,-202.49051699,0.00033,21]
[359989365,1746466248660,-1001.37981256,0.00033,7]
[359989366,1746466248669,-3012.65987163,0.00033,2]
[359989367,1746466248679,-2846.00894333,0.0003307,2]
[359989368,1746466248688,-500.0,0.00033073,5]
[359989369,1746466248698,-623.61212939,0.00033073,5]
[359989370,1746466248707,-500.0,0.00033073,5]
[359989371,1746466248717,-500.0,0.00033073,5]
[359989372,1746466248726,-500.0,0.00033073,5]
[359989373,1746466248736,-614.95006914,0.00033073,5]
[359989374,1746466248746,-500.0,0.00033073,5]
[359989375,1746466248757,-541.37227278,0.00033073,5]
[359989376,1746466248766,-218.05921073,0.00033073,5]
[359989377,1746466248776,-500.0,0.00033073,5]
[359989378,1746466248785,-407.41112909,0.00033073,3]
[359989379,1746466248795,-501.97098283,0.00033073,5]
[359989380,1746466248804,-150.0,0.00033073,5]
[359989381,1746466248814,-500.0,0.00033073,5]
[359989382,1746466248824,-236.47896105,0.00033073,5]
[359989383,1746466248833,-500.0,0.00033073,5]
[359989384,1746466248844,-250.580032,0.0003308,14]
[359989385,1746466248853,-151.0,0.0003308,14]
[359989386,1746466248863,-200.337959,0.0003308,14]
[359989387,1746466248873,-168.0969,0.0003308,14]
[359989388,1746466248882,-151.0,0.0003308,14]
[359989389,1746466248892,-168.0969,0.0003308,14]
[359989390,1746466248902,-151.0,0.0003308,14]
[359989391,1746466248911,-183.373749,0.0003308,2]
[359989392,1746466248920,-183.373749,0.0003308,2]
[359989393,1746466248930,-151.0,0.0003308,14]
[359989394,1746466248939,-151.0,0.0003308,14]
[359989395,1746466248949,-151.0,0.0003308,14]
[359989396,1746466248958,-151.0,0.0003308,14]
[359989397,1746466248968,-259.84,0.00033089,2]
[359989398,1746466248977,-160.0,0.00033089,10]
[359989399,1746466248987,-226530.03579389,0.0003309,2]
[359989400,1746466248996,-160.0,0.0003309,3]
[359989401,1746466249007,-4749.68496691,0.0003309,2]
[359989402,1746466249016,-252715.31794268,0.0003309,2]
[359989403,1746466249026,-151.0,0.0003309,14]
[359989404,1746466249036,-168.0969,0.0003309,14]
[359989405,1746466249046,-151.0,0.0003309,14]
[359989406,1746466249056,-168.0969,0.0003309,14]
[359989407,1746466249066,-153.251682,0.0003309,14]
[359989408,1746466249075,-183.373749,0.0003309,2]
[359989409,1746466249084,-183.373749,0.0003309,2]
[359989410,1746466249094,-151.0,0.0003309,14]
[359989411,1746466249103,-151.0,0.0003309,14]
[359989412,1746466249113,-151.0,0.0003309,14]
[359989413,1746466249122,-151.0,0.0003309,14]
[359989414,1746466249132,-193.329014,0.0003309,14]
[359989415,1746466249141,-264.93869,0.0003309,14]
[359989416,1746466249151,-193.329014,0.0003309,14]
[359989417,1746466249160,-264.93869,0.0003309,14]
[359989418,1746466249170,-151.0,0.0003309,14]
[359989419,1746466249180,-240.140147,0.0003309,14]
[359989420,1746466249189,-247.754589,0.0003309,14]
[359989421,1746466249199,-151.0,0.0003309,14]
[359989422,1746466249209,-169.539145,0.0003309,14]
[359989423,1746466249218,-169.539145,0.0003309,14]
[359989424,1746466249228,-151.0,0.0003309,14]
[359989425,1746466249238,-151.0,0.0003309,14]
[359989426,1746466249247,-226.343763,0.0003309,14]
[359989427,1746466249257,-226.343763,0.0003309,14]
[359989428,1746466249268,-226.343763,0.0003309,14]
[359989429,1746466249279,-226.343763,0.0003309,14]
[359989430,1746466249288,-151.0,0.0003309,14]
[359989431,1746466249298,-151.0,0.0003309,14]
[359989432,1746466249307,-151.0,0.0003309,14]
[359989433,1746466249318,-151.0,0.0003309,14]
[359989434,1746466249327,-151.0,0.0003309,14]
[359989435,1746466249337,-302.913528,0.0003309,14]
[359989436,1746466249347,-302.913528,0.0003309,14]
[359989437,1746466249357,-6281.840601,0.0003309,2]
[359989438,1746466249366,-6281.840601,0.0003309,2]
[359989439,1746466249376,-402.903244,0.0003309,14]
[359989440,1746466249386,-402.903244,0.0003309,14]
[359989441,1746466249395,-151.0,0.0003309,14]
[359989442,1746466249405,-151.0,0.0003309,14]
[359989443,1746466249414,-255.670938,0.0003309,14]
[359989444,1746466249423,-151.0,0.0003309,14]
[359989445,1746466249433,-151.0,0.00033096,14]
[359989446,1746466249442,-151.0,0.000331,14]
[359989447,1746466249451,-151.0,0.000331,18]
[359989448,1746466249461,-160.0,0.00033124,3]
[359989449,1746466249470,-151.0,0.00033124,3]
[359989450,1746466249479,-500.0,0.00033124,3]
[359989451,1746466249488,-151.07251495,0.00033124,3]
[359989452,1746466249498,-200.08925429,0.00033124,3]
[359989453,1746466249508,-157.0,0.00033124,3]
[359989454,1746466249517,-151.0,0.00033124,3]
[359989455,1746466249526,-151.0,0.00033124,3]
[359989456,1746466249535,-151.0,0.00033124,3]
[359989457,1746466249544,-151.0,0.00033124,3]
[359989458,1746466249553,-151.0,0.00033124,3]
[359989459,1746466249563,-151.27407465,0.00033124,3]
[359989460,1746466249572,-500.0,0.00033124,3]
[359989461,1746466249581,-151.0,0.00033124,3]
[359989462,1746466249590,-151.0,0.00033124,3]
[359989463,1746466249599,-151.5795606,0.00033124,3]
[359989464,1746466249609,-188.9933175,0.00033124,3]
[359989465,1746466249617,-160.42348852,0.00033124,3]
[359989466,1746466249627,-151.0,0.00033124,3]
[359989467,1746466249636,-151.0,0.00033124,3]
[359989468,1746466249645,-151.0,0.00033124,3]
[359989469,1746466249654,-151.0,0.00033124,2]
[359989470,1746466249663,-151.0,0.00033124,3]
[359989471,1746466249673,-151.0,0.00033124,3]
[359989472,1746466249683,-151.0,0.00033124,2]
[359989473,1746466249692,-151.0,0.00033124,3]
[359989474,1746466249701,-151.0,0.00033124,3]
[359989475,1746466249711,-668.0,0.00033124,3]
[359989476,1746466249719,-151.0,0.00033124,3]
[359989477,1746466249730,-200.02059944,0.00033124,3]
[359989478,1746466249740,-160.77902792,0.00033124,3]
[359989479,1746466249749,-151.0,0.00033124,3]
[359989480,1746466249759,-160.0,0.0003313,3]
[359989481,1746466249769,-151.0,0.0003314,2]
[359989482,1746466249778,-151.0,0.0003314,14]
[359989483,1746466249787,-151.0,0.0003314,14]
[359989484,1746466249796,-151.0,0.00033141,14]
[359989485,1746466249805,-1295.80383713,0.00033141,28]
[359989486,1746466249815,-409.95385558,0.00033149,10]
[359989487,1746466249825,-160.86072009,0.00033149,10]
[359989488,1746466249836,-226.343763,0.00033149,14]
[359989489,1746466249848,-226.343763,0.00033149,14]
[359989490,1746466249858,-151.0,0.00033149,14]
[359989491,1746466249867,-68461.96399417,0.0003315,3]
[359989492,1746466249877,-151.0,0.0003315,14]
[359989493,1746466249886,-151.0,0.0003315,14]
[359989494,1746466249896,-237.33712,0.0003315,14]
[359989495,1746466249908,-400.0,0.0003315,8]
[359989496,1746466249918,-151.0,0.0003315,14]
[359989497,1746466249927,-164.740979,0.0003315,14]
[359989498,1746466249937,-1692.68,0.0003315,8]
[359989499,1746466249946,-244.386599,0.0003315,14]
[359989500,1746466249955,-244.386599,0.0003315,14]
[359989501,1746466249964,-408.19,0.0003315,8]
[359989502,1746466249973,-400.0,0.0003315,8]
[359989503,1746466249983,-151.0,0.0003315,14]
[359989504,1746466249993,-151.0,0.0003315,14]
[359989505,1746466250004,-151.0,0.0003315,14]
[359989506,1746466250014,-400.0,0.0003315,8]
[359989507,1746466250023,-151.0,0.0003315,14]
[359989508,1746466250032,-400.0,0.0003315,8]
[359989509,1746466250042,-400.0,0.0003315,8]
[359989510,1746466250051,-621.86,0.0003315,8]
[359989511,1746466250060,-400.0,0.0003315,8]
[359989512,1746466250070,-400.0,0.0003315,8]
[359989513,1746466250079,-168.0969,0.0003315,14]
[359989514,1746466250088,-168.0969,0.0003315,14]
[359989515,1746466250098,-168.0969,0.0003315,14]
[359989516,1746466250108,-164.637409,0.0003315,14]
[359989517,1746466250117,-168.0969,0.0003315,14]
[359989518,1746466250127,-168.0969,0.0003315,14]
[359989519,1746466250137,-168.0969,0.0003315,14]
[359989520,1746466250147,-497.81,0.0003315,8]
[359989521,1746466250157,-400.0,0.0003315,8]
[359989522,1746466250166,-480.51,0.0003315,8]
[359989523,1746466250176,-414.93719434,0.0003315,8]
[359989524,1746466250185,-441.76,0.0003315,8]
[359989525,1746466250194,-400.0,0.0003315,8]
[359989526,1746466250203,-400.0,0.0003315,8]
[359989527,1746466250213,-663.75,0.0003315,8]
[359989528,1746466250222,-468.83,0.0003315,8]
[359989529,1746466250232,-400.0,0.0003315,8]
[359989530,1746466250242,-312.4511381,0.0003315,8]
[359989531,1746466250250,-400.0,0.0003315,8]
[359989532,1746466250261,-400.0,0.0003315,8]
[359989533,1746466250273,-650.06,0.0003315,8]
[359989534,1746466250282,-400.0,0.0003315,8]
[359989535,1746466250291,-400.0,0.0003315,8]
[359989536,1746466250301,-400.0,0.0003315,8]
[359989537,1746466250310,-547.05662584,0.0003315,8]
[359989538,1746466250321,-400.0,0.0003315,8]
[359989539,1746466250330,-424.49,0.0003315,8]
[359989540,1746466250340,-183.373749,0.0003315,2]
[359989541,1746466250352,-183.373749,0.0003315,2]
[359989542,1746466250362,-183.373749,0.0003315,2]
[359989543,1746466250371,-183.373749,0.0003315,2]
[359989544,1746466250381,-400.0,0.0003315,8]
[359989545,1746466250390,-183.373749,0.0003315,2]
[359989546,1746466250399,-183.373749,0.0003315,2]
[359989547,1746466250408,-400.0,0.0003315,8]
[359989548,1746466250418,-214.90898422,0.0003315,8]
[359989549,1746466250427,-400.0,0.0003315,8]
[359989550,1746466250436,-1000.0,0.0003315,28]
[359989551,1746466250446,-1000.0,0.0003315,28]
[359989552,1746466250456,-400.0,0.0003315,8]
[359989553,1746466250465,-1000.0,0.0003315,28]
[359989554,1746466250474,-1000.0,0.0003315,28]
[359989555,1746466250484,-1000.0,0.0003315,28]
[359989556,1746466250493,-1000.0,0.0003315,28]
[359989557,1746466250502,-1000.0,0.0003315,28]
[359989558,1746466250512,-1000.0,0.0003315,28]
[359989559,1746466250522,-1000.0,0.0003315,28]
[359989560,1746466250531,-1000.0,0.0003315,28]
[359989561,1746466250541,-1000.0,0.0003315,28]
[359989562,1746466250551,-1000.0,0.0003315,28]
[359989563,1746466250560,-1000.0,0.0003315,28]
[359989564,1746466250569,-1000.0,0.0003315,28]
[359989565,1746466250579,-1000.0,0.0003315,28]
[359989566,1746466250588,-1000.0,0.0003315,28]
[359989567,1746466250598,-1000.0,0.0003315,28]
[359989568,1746466250607,-1000.0,0.0003315,28]
[359989569,1746466250616,-1000.0,0.0003315,28]
[359989570,1746466250626,-1000.0,0.0003315,28]
[359989571,1746466250635,-1000.0,0.0003315,28]
[359989572,1746466250644,-1000.0,0.0003315,28]
[359989573,1746466250654,-1000.0,0.0003315,28]
[359989574,1746466250664,-584.19,0.0003315,8]
[359989575,1746466250673,-1000.0,0.0003315,28]
[359989576,1746466250784,-1000.0,0.0003315,28]
[359989577,1746466250795,-1000.0,0.0003315,28]
[359989578,1746466250804,-1000.0,0.0003315,28]
[359989579,1746466250814,-1000.0,0.0003315,28]
[359989580,1746466250824,-400.0,0.0003315,8]
[359989581,1746466250834,-1000.0,0.0003315,28]
[359989582,1746466250843,-1000.0,0.0003315,28]
[359989583,1746466250853,-1000.0,0.0003315,28]
[359989584,1746466250863,-1000.0,0.0003315,28]
[359989585,1746466250873,-1000.0,0.0003315,28]
[359989586,1746466250882,-1000.0,0.0003315,28]
[359989587,1746466250891,-1000.0,0.0003315,28]
[359989588,1746466250900,-1000.0,0.0003315,28]
[359989589,1746466250909,-1000.0,0.0003315,28]
[359989590,1746466250918,-1000.0,0.0003315,28]
[359989591,1746466250927,-1000.0,0.0003315,28]
[359989592,1746466250936,-1000.0,0.0003315,28]
[359989593,1746466250946,-400.0,0.0003315,8]
[359989594,1746466250955,-1000.0,0.0003315,28]
[359989595,1746466250965,-1000.0,0.0003315,28]
[359989596,1746466250974,-1000.0,0.0003315,28]
[359989597,1746466250984,-1000.0,0.0003315,28]
[359989598,1746466250994,-544.01,0.0003315,8]
[359989599,1746466251003,-1000.0,0.0003315,28]
[359989600,1746466251013,-1000.0,0.0003315,28]
[359989601,1746466251022,-1000.0,0.0003315,28]
[359989602,1746466251031,-1000.0,0.0003315,28]
[359989603,1746466251040,-1000.0,0.0003315,28]
[359989604,1746466251049,-1000.0,0.0003315,28]
[359989605,1746466251059,-1000.0,0.0003315,28]
[359989606,1746466251069,-1000.0,0.0003315,28]
[359989607,1746466251079,-1000.0,0.0003315,28]
[359989608,1746466251089,-1000.0,0.0003315,28]
[359989609,1746466251099,-1000.0,0.0003315,28]
[359989610,1746466251108,-688.436082,0.0003315,28]
[359989611,1746466251118,-151.0,0.0003315,14]
[359989612,1746466251128,-151.0,0.0003315,14]
[359989613,1746466251137,-151.0,0.0003315,14]
[359989614,1746466251147,-151.0,0.0003315,14]
[359989615,1746466251156,-400.0,0.0003315,8]
[359989616,1746466251169,-159.58086022,0.0003315,8]
[359989617,1746466251179,-445.11,0.0003315,8]
[359989618,1746466251189,-400.0,0.0003315,8]
[359989619,1746466251199,-400.0,0.0003315,8]
[359989620,1746466251208,-400.0,0.0003315,8]
[359989621,1746466251218,-400.0,0.0003315,8]
[359989622,1746466251227,-400.0,0.0003315,8]
[359989623,1746466251237,-400.0,0.0003315,8]
[359989624,1746466251246,-400.0,0.0003315,8]
[359989625,1746466251257,-151.0,0.0003315,14]
[359989626,1746466251267,-400.0,0.0003315,8]
[359989627,1746466251278,-325.71192976,0.0003315,8]
[359989628,1746466251287,-400.0,0.0003315,8]
[359989629,1746466251297,-596.14,0.0003315,8]
[359989630,1746466251306,-400.0,0.0003315,8]
[359989631,1746466251318,-407.26,0.0003315,8]
[359989632,1746466251327,-400.0,0.0003315,8]
[359989633,1746466251337,-400.0,0.0003315,8]
[359989634,1746466251347,-400.0,0.0003315,8]
[359989635,1746466251357,-400.0,0.0003315,8]
[359989636,1746466251368,-400.0,0.0003315,8]
[359989637,1746466251377,-400.0,0.0003315,8]
[359989638,1746466251386,-723.92,0.0003315,8]
[359989639,1746466251396,-193.329014,0.0003315,14]
[359989640,1746466251405,-193.329014,0.0003315,14]
[359989641,1746466251415,-193.329014,0.0003315,14]
[359989642,1746466251424,-400.0,0.0003315,2]
[359989643,1746466251434,-193.329014,0.0003315,14]
[359989644,1746466251444,-264.93869,0.0003315,14]
[359989645,1746466251453,-264.93869,0.0003315,14]
[359989646,1746466251462,-264.93869,0.0003315,14]
[359989647,1746466251472,-264.93869,0.0003315,14]
[359989648,1746466251481,-193.329014,0.0003315,14]
[359989649,1746466251490,-193.329014,0.0003315,14]
[359989650,1746466251499,-193.329014,0.0003315,14]
[359989651,1746466251510,-193.329014,0.0003315,14]
[359989652,1746466251519,-400.0,0.0003315,8]
[359989653,1746466251528,-400.0,0.0003315,8]
[359989654,1746466251537,-264.93869,0.0003315,14]
[359989655,1746466251547,-264.93869,0.0003315,14]
[359989656,1746466251556,-264.93869,0.0003315,14]
[359989657,1746466251566,-601.89,0.0003315,8]
[359989658,1746466251575,-264.93869,0.0003315,14]
[359989659,1746466251584,-400.0,0.0003315,8]
[359989660,1746466251593,-400.0,0.0003315,8]
[359989661,1746466251602,-516.84,0.0003315,8]
[359989662,1746466251612,-400.0,0.0003315,8]
[359989663,1746466251621,-400.0,0.0003315,8]
[359989664,1746466251630,-400.0,0.0003315,8]
[359989665,1746466251639,-744.57,0.0003315,8]
[359989666,1746466251649,-400.0,0.0003315,8]
[359989667,1746466251658,-856.46,0.0003315,8]
[359989668,1746466251668,-400.0,0.0003315,8]
[359989669,1746466251677,-763.86,0.0003315,8]
[359989670,1746466251686,-500.0,0.0003315,8]
[359989671,1746466251695,-400.0,0.0003315,8]
[359989672,1746466251705,-400.0,0.0003315,8]
[359989673,1746466251714,-400.0,0.0003315,8]
[359989674,1746466251723,-508.21,0.0003315,8]
[359989675,1746466251733,-400.0,0.0003315,8]
[359989676,1746466251742,-400.0,0.0003315,8]
[359989677,1746466251751,-204.55047067,0.0003315,8]
[359989678,1746466251763,-502.77,0.0003315,8]
[359989679,1746466251773,-2573.19,0.0003315,8]
[359989680,1746466251783,-400.0,0.0003315,8]
[359989681,1746466251792,-406.0022176,0.0003315,8]
[359989682,1746466251801,-412.76,0.0003315,8]
[359989683,1746466251811,-400.0,0.0003315,8]
[359989684,1746466251820,-400.0,0.0003315,8]
[359989685,1746466251829,-151.0,0.0003315,14]
[359989686,1746466251839,-1858.43,0.0003315,8]
[359989687,1746466251848,-151.0,0.0003315,14]
[359989688,1746466251857,-151.0,0.0003315,14]
[359989689,1746466251866,-151.0,0.0003315,14]
[359989690,1746466251876,-663.7,0.0003315,8]
[359989691,1746466251885,-752.3,0.0003315,8]
[359989692,1746466251894,-400.0,0.0003315,8]
[359989693,1746466251903,-400.0,0.0003315,8]
[359989694,1746466251912,-400.0,0.0003315,8]
[359989695,1746466251921,-400.0,0.0003315,8]
[359989696,1746466251931,-3742.18,0.0003315,8]
[359989697,1746466251943,-400.0,0.0003315,8]
[359989698,1746466251952,-742.46,0.0003315,8]
[359989699,1746466251962,-791.14,0.0003315,8]
[359989700,1746466251971,-400.0,0.0003315,8]
[359989701,1746466251980,-500.0,0.0003315,8]
[359989702,1746466251990,-400.0,0.0003315,8]
[359989703,1746466251999,-400.0,0.0003315,8]
[359989704,1746466252010,-400.0,0.0003315,8]
[359989705,1746466252019,-400.0,0.0003315,8]
[359989706,1746466252029,-424.76346582,0.0003315,8]
[359989707,1746466252038,-544.88225736,0.0003315,8]
[359989708,1746466252047,-400.0,0.0003315,8]
[359989709,1746466252057,-400.0,0.0003315,8]
[359989710,1746466252066,-424.25,0.0003315,8]
[359989711,1746466252076,-400.0,0.0003315,8]
[359989712,1746466252086,-400.0,0.0003315,8]
[359989713,1746466252094,-400.0,0.0003315,8]
[359989714,1746466252104,-400.0,0.0003315,8]
[359989715,1746466252113,-400.0,0.0003315,8]
[359989716,1746466252123,-400.0,0.0003315,8]
[359989717,1746466252133,-400.0,0.0003315,8]
[359989718,1746466252143,-400.0,0.0003315,8]
[359989719,1746466252152,-400.0,0.0003315,8]
[359989720,1746466252163,-400.0,0.0003315,8]
[359989721,1746466252172,-400.0,0.0003315,8]
[359989722,1746466252182,-971.48,0.0003315,8]
[359989723,1746466252192,-400.0,0.0003315,8]
[359989724,1746466252201,-169.539145,0.0003315,14]
[359989725,1746466252212,-400.0,0.0003315,8]
[359989726,1746466252222,-169.539145,0.0003315,14]
[359989727,1746466252231,-169.539145,0.0003315,14]
[359989728,1746466252241,-169.539145,0.0003315,14]
[359989729,1746466252250,-169.539145,0.0003315,14]
[359989730,1746466252262,-410.74,0.0003315,8]
[359989731,1746466252275,-169.539145,0.0003315,14]
[359989732,1746466252285,-400.0,0.0003315,8]
[359989733,1746466252295,-169.539145,0.0003315,14]
[359989734,1746466252304,-169.539145,0.0003315,14]
[359989735,1746466252315,-502.97,0.0003315,8]
[359989736,1746466252325,-1385.97,0.0003315,8]
[359989737,1746466252335,-828.56,0.0003315,8]
[359989738,1746466252345,-400.0,0.0003315,8]
[359989739,1746466252356,-1013.68,0.0003315,8]
[359989740,1746466252365,-904.75,0.0003315,8]
[359989741,1746466252374,-400.0,0.0003315,8]
[359989742,1746466252384,-467.3906669,0.0003315,8]
[359989743,1746466252394,-1542.95,0.0003315,8]
[359989744,1746466252404,-544.83,0.0003315,8]
[359989745,1746466252413,-151.0,0.0003315,14]
[359989746,1746466252423,-400.0,0.0003315,8]
[359989747,1746466252434,-151.0,0.0003315,14]
[359989748,1746466252443,-151.0,0.0003315,14]
[359989749,1746466252452,-400.0,0.0003315,8]
[359989750,1746466252462,-400.0,0.0003315,8]
[359989751,1746466252472,-151.0,0.0003315,14]
[359989752,1746466252482,-400.0,0.0003315,8]
[359989753,1746466252492,-400.0,0.0003315,8]
[359989754,1746466252502,-906.63,0.0003315,8]
[359989755,1746466252513,-400.0,0.0003315,8]
[359989756,1746466252523,-402.60440826,0.0003315,8]
[359989757,1746466252532,-899.92,0.0003315,8]
[359989758,1746466252542,-400.0,0.0003315,8]
[359989759,1746466252551,-400.0,0.0003315,8]
[359989760,1746466252561,-400.0,0.0003315,8]
[359989761,1746466252571,-400.0,0.0003315,8]
[359989762,1746466252581,-1685.97,0.0003315,8]
[359989763,1746466252590,-400.0,0.0003315,8]
[359989764,1746466252600,-400.0,0.0003315,8]
[359989765,1746466252609,-400.0,0.0003315,8]
[359989766,1746466252619,-400.0,0.0003315,8]
[359989767,1746466252629,-400.0,0.0003315,8]
[359989768,1746466252639,-411.02,0.0003315,8]